Cogmind - Beta 13 @@@ ROGUE MODE // 2024.04.13 @ 11:07:23 Player: Catty Watty Result: Self-destructed Performance ------------- Evolutions (1) 500 Regions Visited (2) 400 Robots Destroyed (9) 45 Value Destroyed (146) 146 Prototype IDs (0) 0 Alien Tech Used (0) 0 Bonus (0) 0 TOTAL SCORE: 1091 Bonus ------- None Cogmind --------- Core Integrity 196/400 Matter 211/300 Energy 100/100 System Corruption 0% Temperature Cool (0) Movement Core (700) Ox13 Location -9/Materials Parts ------- > --- POWER (1) -------- (None) > --- PROPULSION (4) --- (None) > --- UTILITY (2) ------ High-capacity Storage Unit > --- WEAPON (2) ------- (None) > --- INVENTORY (20) --- Large Battery (200) Peak State ------------ > --- POWER ------------ Ion Engine > --- PROPULSION ------- Aluminum Leg Aluminum Leg Aluminum Leg Aluminum Leg > --- UTILITY ---------- High-capacity Storage Unit Improved Terrain Scanner > --- WEAPON ----------- Medium Laser Assault Rifle > --- INVENTORY -------- Large Battery [Rating: 11] Favorites ----------- Power Ion Engine Engine Ion Engine Propulsion Aluminum Leg Leg Aluminum Leg Utility Improved Terrain Scanner Device Improved Terrain Scanner Storage Small Storage Unit Weapon Medium Laser Energy Gun Medium Laser Ballistic Gun Assault Rifle Build | -11 -10 -9 ------- Run | Yrd Mat Mat Slots Evolved 2 | . . 2 Power . | . . . Propulsion 2 | . . 2 Utility . | . . . Weapon . | . . . Parts Attached 10 | 7 . 3 Power 1 | 1 . . Engine 1 | 1 . . Core . | . . . Reactor . | . . . Propulsion 4 | 2 . 2 Treads . | . . . Leg 4 | 2 . 2 Wheel . | . . . Hover . | . . . Flight . | . . . Utility 3 | 2 . 1 Device 1 | 1 . . Storage 2 | 1 . 1 Processor . | . . . Hackware . | . . . Protection . | . . . Artifact . | . . . Weapon 2 | 2 . . Energy Gun 1 | 1 . . Energy Cannon . | . . . Ballistic Gun 1 | 1 . . Ballistic Cannon . | . . . Launcher . | . . . Special Weapon . | . . . Impact Weapon . | . . . Slashing Weapon . | . . . Piercing Weapon . | . . . Special Melee Weapon . | . . . Unidentified Prototypes . | . . . Parts Lost 8 | . . 8 Power 1 | . . 1 Propulsion 4 | . . 4 Utility 1 | . . 1 Weapon 2 | . . 2 Highest Loss Streak 8 | . . 8 To Critical Strikes . | . . . Average Slot Usage (%) 86 | . 100 74 Engine 11 | . 14 9 Leg 26 | . 28 25 Device 12 | . 14 10 Storage 12 | . 14 11 Energy Gun 11 | . 14 9 Ballistic Gun 11 | . 14 8 Naked Turns . | . . . Heaviest Build 50 | 15 15 50 Greatest Support 40 | 20 20 40 Greatest Overweight (x) 3 | . . 3 Average Overweight (x) . | . . . Largest Inventory Capacity 20 | 8 8 20 Average Capacity 12 | 7 8 17 Most Carried 1 | . 1 1 Average Carried . | . . 1 Final Capacity 20 | 8 8 20 Final Carried 1 | . 1 1 Class Distribution -------------------- 100% | Mutant Dominant Class ---------------- Mutant | -10/Materials Mutant | -9/Materials Resources | -11 -10 -9 ----------- Run | Yrd Mat Mat Matter Collected 258 | 129 35 94 Remotely . | . . . Salvage Created 296 | 24 61 211 Parts 19 | 4 7 8 Haulers Intercepted . | . . . Recyclers Shooed . | . . . Parts Field Recycled . | . . . Retrieved Matter . | . . . Parts Self-Destructed . | . . . Prevented . | . . . Kills | -11 -10 -9 ------- Run | Yrd Mat Mat Combat Hostiles Destroyed 6 | . 3 3 Guns 6 | . 3 3 Classes Destroyed 5 | 1 2 2 Worker 1 | . 1 . Tunneler 1 | 1 . . Recycler 1 | . . 1 Swarmer 3 | . 3 . Grunt 3 | . . 3 Best Kill Streak 2 | 1 2 2 Combat Bots Only 2 | . 2 1 Max Kills in Single Turn 1 | 1 1 1 Gunslinging . | . . . Exploded . | . . . Melee . | . . . Uniques/NPCs Destroyed . | . . . Combat | -11 -10 -9 -------- Run | Yrd Mat Mat Hostile Shots Fired 110 | . 20 90 Missed 31 | . 6 25 Damage Taken 908 | . 114 794 Core 222 | . 18 204 Absorbed by Shields . | . . . Core Remaining (%) 96 | 100 92 . Volleys Fired 35 | 3 11 21 Largest 2 | 2 2 2 Hottest 70 | 70 70 70 Shots Fired 64 | 6 22 36 Gun 64 | 6 22 36 Cannon . | . . . Launcher . | . . . Special . | . . . Kinetic 29 | 3 11 15 Thermal 35 | 3 11 21 Explosive . | . . . Electromagnetic . | . . . Robot Hit Streak 5 | 2 4 5 Robot Miss Streak 5 | 1 4 5 Penetration Max . | . . . Secondary Targets . | . . . Shots Hit Robots 32 | 3 9 20 Core Hits 13 | 1 4 8 Critical Kills . | . . . Critical Parts Destroyed 1 | . . 1 Critical Strikes 2 | . . 2 Burn 1 | . . 1 Destroy 1 | . . 1 Melee Attacks . | . . . Impact . | . . . Slashing . | . . . Piercing . | . . . Sneak Attacks . | . . . Combat Hostiles . | . . . Follow-up Attacks . | . . . Damage Inflicted 401 | 37 140 224 Guns 401 | 37 140 224 Cannons . | . . . Explosions . | . . . Melee . | . . . Ramming . | . . . Kinetic 187 | 13 76 98 Thermal 214 | 24 64 126 Explosive . | . . . Electromagnetic . | . . . Impact . | . . . Slashing . | . . . Piercing . | . . . Highest Corruption 1 | . 1 . Average Corruption 1 | . 1 . Corruption Purged . | . . . Corruption Blocked . | . . . Overload Shots . | . . . Overflow Damage . | . . . Projectiles . | . . . Explosions . | . . . Melee . | . . . Knockbacks . | . . . Impact . | . . . Kinetic . | . . . Secondary . | . . . Self-Inflicted Damage . | . . . Shots . | . . . Rammed . | . . . Targets Rammed . | . . . Kicked . | . . . Crushed . | . . . Highest Temperature 120 | 27 27 120 Average Temperature 29 | 14 10 42 Received Heat Transfer 426 | . . 426 Siege Activations . | . . . Robots Corrupted . | . . . Combat Hostiles . | . . . Parts Fried . | . . . Impact Corruptions . | . . . Robots Melted . | . . . Combat Hostiles . | . . . Parts Melted . | . . . Heat Transferred 703 | 74 185 444 Parts Sabotaged . | . . . Parts Stolen . | . . . Parts Stripped . | . . . Power Chain Reactions . | . . . Alert | -11 -10 -9 ------- Run | Yrd Mat Mat Peak Influence 146 | 5 123 146 Initial 51 | . 3 51 Average 62 | 1 62 79 Maximum Alert Level . | . . . Low Security (%) 100 | 100 100 100 Level 1 . | . . . Level 2 . | . . . Level 3 . | . . . Level 4 . | . . . Level 5 . | . . . High Security . | . . . Max Security . | . . . Squads Dispatched 2 | . 1 1 Investigation . | . . . Extermination . | . . . Reinforcement 2 | . 1 1 Assault . | . . . Garrison . | . . . Intercept . | . . . Searches Triggered . | . . . Construction Impeded . | . . . Haulers Reinforced . | . . . Active Scanning Responses . | . . . Cargo Convoy Interrupts . | . . . Stealth | -11 -10 -9 --------- Run | Yrd Mat Mat Distress Signals 1 | . 1 . Communications Jammed . | . . . Distress Signals . | . . . Times Spotted 18 | . 8 10 Peak Tracking Total 4 | . 3 4 Tactical Retreats 2 | . 1 1 Traps | -11 -10 -9 ------- Run | Yrd Mat Mat Traps Triggered . | . . . Indirectly . | . . . Trap Hack Attempts . | . . . Triggered . | . . . Disarmed . | . . . Reprogrammed . | . . . Reused . | . . . Traps Extracted . | . . . Installed . | . . . Triggered . | . . . Machines | -11 -10 -9 ---------- Run | Yrd Mat Mat Machines Disabled . | . . . Max in Single Turn . | . . . Machines Repaired . | . . . Machines Dismantled . | . . . Machines Sabotaged . | . . . Overloaded Fab Kills . | . . . Hacking | -11 -10 -9 --------- Run | Yrd Mat Mat Machines Accessed 2 | . 2 . Terminals 1 | . 1 . Fabricators . | . . . Repair Stations . | . . . Recycling Units 1 | . 1 . Scanalyzers . | . . . Garrison Access . | . . . Total Hacks 3 | . 3 . Successful 2 | . 2 . Failed 1 | . 1 . Catastrophic . | . . . Database Lockouts . | . . . Manual . | . . . Terminals 2 | . 2 . Fabricators . | . . . Repair Stations . | . . . Recycling Units 1 | . 1 . Scanalyzers . | . . . Garrison Access . | . . . Terminal Hacks 1 | . 1 . Hauler Manifests 1 | . 1 . Fabricator Hacks . | . . . Repair Station Hacks . | . . . Recycling Unit Hacks 1 | . 1 . Report Inventory 1 | . 1 . Scanalyzer . | . . . Garrison Access Hacks . | . . . Unauthorized Hacks . | . . . Terminals . | . . . Fabricators . | . . . Repair Stations . | . . . Recycling Units . | . . . Scanalyzers . | . . . Garrison Access . | . . . Data Cores Recovered . | . . . Used . | . . . Hacking Detections 2 | . 2 . Full Trace Events 1 | . 1 . Feedback Events 1 | . 1 . Corruption 1 | . 1 . Feedback Blocked . | . . . Robot Schematics Acquired . | . . . Robots Built . | . . . Authchips . | . . . Time . | . . . Total Robot Build Rating . | . . . Part Schematics Acquired . | . . . Parts Built . | . . . Authchips . | . . . Time . | . . . Total Part Build Rating . | . . . Parts Repaired . | . . . Time . | . . . Parts Recycled . | . . . Recycled Matter . | . . . Retrieved Matter . | . . . Retrieved Components . | . . . Parts Scanalyzed . | . . . Part Schematics Acquired . | . . . Parts Damaged . | . . . Bothacking | -11 -10 -9 ------------ Run | Yrd Mat Mat Used RIF Installer . | . . . Robots Hacked . | . . . Non-combat . | . . . Combat . | . . . Robot Hacks Applied . | . . . Relay Couplers Released . | . . . Fabnet Peak Effective % . | . . . Robots Rewired . | . . . Allies Hacked . | . . . Hacks Repelled . | . . . Allies | -11 -10 -9 -------- Run | Yrd Mat Mat Total Allies . | . . . Largest Group . | . . . Highest-Rated Group . | . . . Highest-Rated Ally . | . . . Total Orders . | . . . Ally Attacks . | . . . Total Damage . | . . . Kills . | . . . Allies Corrupted . | . . . Allies Melted . | . . . Intel | -11 -10 -9 ------- Run | Yrd Mat Mat Robot Analysis Total . | . . . Derelict Logs Recovered . | . . . Drone Launches . | . . . Drone Recoveries . | . . . Exploration | -11 -10 -9 ------------- Run | Yrd Mat Mat Turns Passed 607 | 83 252 272 Spaces Moved 350 | 55 182 113 Core 3 | 3 . . Treads . | . . . Legs 347 | 52 182 113 Wheels . | . . . Hover . | . . . Flight . | . . . Fastest Speed 50 | 50 120 120 Average Speed 140 | 116 120 185 Slowest Speed 330 | 120 120 330 Overloaded Moves . | . . . Propulsion Burnouts . | . . . Robots Hopped . | . . . Cave-ins Triggered . | . . . Exploration Rate (%) 15 | 3 28 16 Regions Visited 2 Branch Regions . Pre-discovered Areas . | . . . Known Exits Taken . | . . . Unknown Exits Taken 2 | 1 1 . Scrap Searched . | . . . Spaces Dug . | . . . Terrain Destroyed . | . . . Melee . | . . . Projectile . | . . . AOE . | . . . Terrain Rammed . | . . . Walls Destroyed . | . . . Machines Disabled . | . . . Actions | -11 -10 -9 --------- Run | Yrd Mat Mat Total 395 | 64 193 138 Wait . | . . . Move 348 | 54 181 113 Hop . | . . . Pick Up 1 | . 1 . Fast Attach 10 | 7 . 3 Attach . | . . . Detach . | . . . Swap . | . . . Drop 1 | . . 1 Fire 35 | 3 11 21 Melee . | . . . Ram . | . . . Kick . | . . . Crush . | . . . Escape Stasis . | . . . Rewire . | . . . Trap . | . . . Miscellaneous . | . . . Route ------- -11/Scrapyard -10/Materials -9/Materials History --------- Turn | Location | Event 12 | -11/Scrapyard | Discovered new exit (range 16) 84 | -11/Scrapyard | Entered Materials 304 | -10/Materials | Build established: Mutant 315 | -10/Materials | Discovered new exit (range 16) 336 | -10/Materials | Entered another Materials area 336 | -9/Materials | Evolved 2 slots: Propulsion x2 608 | -9/Materials | Self-destructed Last Messages --------------- R-06 Scavenger collects Ion Engine. K-01 Serf collects debris. R-06 Scavenger collects Aluminum Leg. R-06 Scavenger destroyed. K-01 Serf collects debris. Acquired Aluminum Leg. G-34 Mercenary destroyed. Acquired 50 matter. Acquired Aluminum Leg. Purification Channel disabled. Assault Rifle destroyed. G-34 Mercenary destroyed. Aluminum Leg destroyed. G-47 Trooper suffers critical hit (Burn). Med. Laser destroyed. Ion Engine destroyed. Imp. Terrain Scanner destroyed. Aluminum Leg destroyed. M-13 Machinist repairs G-47 Trooper. Aluminum Leg destroyed. Map ----- +----------------------------------------------------+ | ?????????????????????????????????????????????????? | | ?????????????????????????????????????????????????? | | ?????????????????????????????????????????????????? | | ??????????????????????????????????????????????#??? | | ????????????????????????????????????????????? ?? ? | | ?????????????????????????????????????????????????? | | ??????????????????????????????????????????? ?#???? | | ???????????????????????????????????????????????#?? | | ?????????????????????????????????????? ?????###### | | ????????????????????????????????? ? ? ??? | | ????????????????????????????????????/ ?? | | ????????????????????????????????????# ?? | | ????????????????????????????????????? ?????## | | ?????????????????????????????????????# #??????# | | ????????????????????????????????? ???# #?#?#??# | | ?????????????????????????????????????# ##?????# | | ?????????????????????????????????????# ######## | | ?????????????????????????????????????# ! | | ???????????????????????????????????#?# %* | | ??????????????????????? ????? ???????# "" * # | | ?????????????????????????????????????# !"T # | | ????????????????????????????????????##=%"" # | | ???????????????????????#########?????# * # | | ???????????????????????# #????## = # | | ???????????????????????# T #??#??# # | | ???????????????????????# @ ####### ### # | | ???????????????????????# Yg # ### # | | ???????????????????????# """ # # | | ??????????????????? ???# """"" m o^ | | ???????????????????????# """"" # ^" " """ | | ???????????????????????#Y""""" # """"""""" | | ???????????????????????# """ ## """ """ | | ??????????????????????? ## ^ ## | | ???????????????????????# ## #? | | ???????????????????????########## " """"" #? | | ????????????????????????????????# """"""""" #? | | ????????????????????????????????# """ "?? #? | | ????????????????????????????????# ??? #? | | ????????????????????????????????# ??????????? | | ????????????????????????????????# ??????????? | | ????????????????????????????????# ?????????? | | ????????????????????????????????? ??????????? | | ?????????????????????????????????? #????????????? | | ?????????????????????????????????????????????????? | | ?????????????????????????????????????????????????? | | ?????????????????????????????????????????????????? | | ?????????????????????????????????????????????????? | | ?????????????????????????????????????????????????? | | ?????????????????????????????????????????????????? | | ?????????????????????????????????????????????????? | +----------------------------------------------------+ Best States ------------- Heat Dissipation 28 Energy Generation 10 Energy Capacity 250 Matter Stores 201 Matter Capacity 300 Sight Range 16 Terrain Scan Range 16 Terrain Scan Density 10 Evasion (%) 55 Item Schematics ----------------- None Robot Schematics ------------------ None Fabricated ------------ Nothing Alien Tech Used ----------------- None Achievements -------------- None Challenges ------------ None Game ------ Seed SingularityDroneReactor Manual? 0 Play Time 00:06:58 Cumulative 4.0 hours Start 2024.04.12 @ 12:02:47 End 2024.04.13 @ 11:07:23 Sessions 3 Manual Loads 0 Difficulty Rogue Special Mode None Game No. 14 Rogue 14 Adventurer 0 Explorer 0 Win Type - Total 0 Types 0/0/0/0/0/0/0/0/0 Lore% 2 Gallery% 12 Achievement% 10 Wizard Run 0 Options --------- Layout 1 ASCII 0 Keyboard 0 Movement Arrows Keybinds 0 Fullscreen 1 Font 24/Smallcaps Map View 50x35 Zoom Use 0% Tactical HUD 0 Map Filters NONE Filters NONE Steam 1 RUN: 83aa5713-2185-4cfd-b198-be161e8bb8fe